Cogmind - Beta 15 @@@ ROGUE MODE // 2025.05.25 @ 11:46:04 Player: Man of Plasma Result: Destroyed self with Mini Grenade Launcher Performance ------------- Evolutions (2) 1000 Regions Visited (7) 1400 Robots Destroyed (25) 125 Value Destroyed (972) 972 Prototype IDs (25) 500 Alien Tech Used (0) 0 Bonus (214) 214 TOTAL SCORE: 4211 Bonus ------- Follower Combat Kills 14 Entered Garrisons 200 Cogmind --------- Core Integrity 0/550 Matter 208/300 Energy 85/100 System Corruption 0% Temperature Cool (0) Movement Core (100) Ox1 Location -8/Garrison Parts ------- > --- POWER (1) -------- (None) > --- PROPULSION (4) --- (None) > --- UTILITY (4) ------ Small Storage Unit > --- WEAPON (2) ------- Mini Grenade Launcher > --- INVENTORY (8) ---- Light Deuterium Engine Makeshift Transmission Jammer Propulsion Shielding Propulsion Shielding Skeleton Box Precision Beam Rifle Mining Laser Peak State ------------ > --- POWER ------------ Light Deuterium Engine > --- PROPULSION ------- Flight Unit Flight Unit > --- UTILITY ---------- Small Storage Unit Advanced Weight Redist. System Improved Sensor Array Makeshift Transmission Jammer > --- WEAPON ----------- Precision Beam Rifle Light Assault Rifle > --- INVENTORY -------- Light Ion Engine Propulsion Shielding Propulsion Shielding Skeleton Box Precision Beam Rifle Mini Grenade Launcher Mining Laser [Rating: 23] Favorites ----------- Power Ion Engine Engine Ion Engine Propulsion Light Treads Treads Light Treads Leg Aluminum Leg Flight Unit Flight Unit Utility Small Storage Unit Device Sensor Array Storage Small Storage Unit Processor Signal Interpreter Hackware System Shield Protection Propulsion Shielding Weapon Beam Cannon Energy Gun Small Laser Energy Cannon Beam Cannon Ballistic Gun Assault Rifle Launcher Mini Grenade Launcher Build | -11 -10 -9 -9 -9 -8 -8 -8 ------- Run | Yrd Mat Mat Min Exi Min Mat Gar Slots Evolved 4 | . . 2 . . . 2 . Power . | . . . . . . . . Propulsion 2 | . . 1 . . . 1 . Utility 2 | . . 1 . . . 1 . Weapon . | . . . . . . . . Parts Attached 38 | 7 2 4 4 5 1 14 1 Power 5 | 1 . . 1 . . 2 1 Engine 5 | 1 . . 1 . . 2 1 Core . | . . . . . . . . Reactor . | . . . . . . . . Propulsion 11 | 2 . 2 1 2 1 3 . Treads 6 | 2 . 2 . 2 . . . Leg 1 | . . . 1 . . . . Wheel . | . . . . . . . . Hover . | . . . . . . . . Flight 4 | . . . . . 1 3 . Utility 12 | 1 1 1 2 3 . 4 . Device 6 | . 1 . 1 2 . 2 . Storage 2 | 1 . . . 1 . . . Processor 2 | . . 1 1 . . . . Hackware 1 | . . . . . . 1 . Protection 1 | . . . . . . 1 . Artifact . | . . . . . . . . Weapon 10 | 3 1 1 . . . 5 . Energy Gun 4 | 2 . . . . . 2 . Energy Cannon 1 | . 1 . . . . . . Ballistic Gun 4 | 1 . 1 . . . 2 . Ballistic Cannon . | . . . . . . . . Launcher 1 | . . . . . . 1 . Special Weapon . | . . . . . . . . Impact Weapon . | . . . . . . . . Slashing Weapon . | . . . . . . . . Piercing Weapon . | . . . . . . . . Special Melee Weapon . | . . . . . . . . Unidentified Prototypes 2 | . . . . . . 2 . Parts Lost 14 | . . 1 2 . . 5 6 Power 2 | . . 1 . . . . 1 Propulsion 5 | . . . 1 . . 3 1 Utility 3 | . . . . . . . 3 Weapon 4 | . . . 1 . . 2 1 Highest Loss Streak 6 | . . 1 3 . . 3 6 To Critical Strikes . | . . . . . . . . Average Backups 7 | 1 4 7 7 8 8 7 7 Power . | . 1 1 1 1 1 1 1 Propulsion . | . . . . . . . . Utility 2 | . . 2 3 3 3 2 3 Weapon 2 | . 2 2 2 3 3 2 2 Tool/Special . | . . . . . . . . Unused Backups 6 | . . 1 . 1 . . 4 Power . | . . . . . . . . Propulsion . | . . . . . . . . Utility 1 | . . . . . . . 1 Weapon 3 | . . 1 . . . . 2 Tool/Special 2 | . . . . 1 . . 1 Average Slot Usage (%) 90 | . 90 79 91 100 100 76 51 Engine 10 | . 14 11 10 11 11 9 6 Treads 22 | . 28 33 22 24 31 3 . Leg 5 | . . . 10 8 . . . Flight 1 | . . . . . 1 16 6 Device 10 | . 5 . 3 14 22 18 13 Storage 11 | . 14 11 11 11 11 9 9 Processor 5 | . . 3 11 7 . . . Energy Gun 8 | . 6 1 10 11 11 6 1 Energy Cannon 9 | . 7 11 11 11 11 3 . Ballistic Gun 3 | . 14 8 . . . 5 5 Peak Build Rating 23 | 6 8 10 11 20 22 23 23 Average Rating 12 | 4 6 8 9 13 20 19 13 On Entrance 12 | . 6 8 9 10 20 22 23 Naked Turns . | . . . . . . . . Heaviest Build 24 | 11 13 14 15 24 24 24 16 Greatest Support 60 | 40 46 60 40 60 60 40 13 Greatest Overweight (x) 7 | 3 . . . . . 7 1 Average Overweight (x) . | . . . . . . . . Largest Inventory Capacity 10 | 8 8 8 8 10 8 8 8 Average Capacity 7 | 7 8 8 8 8 8 8 8 Most Carried 8 | 2 8 8 8 8 8 8 8 Average Carried 7 | 1 4 7 7 7 7 7 7 Final Capacity 8 | 8 8 8 8 8 8 8 8 Final Carried 8 | 2 8 8 8 8 8 8 7 Class Distribution -------------------- 83% | Mutant 16% | Scavenger-Mutant Dominant Class ---------------- Mutant | -10/Materials Mutant | -9/Materials Mutant | -9/Mines Mutant | -9/Exiles Mutant | -8/Mines Scavenger-Mutant | -8/Materials Mutant | -8/Garrison Resources | -11 -10 -9 -9 -9 -8 -8 -8 ----------- Run | Yrd Mat Mat Min Exi Min Mat Gar Matter Collected 708 | 231 77 65 64 40 40 191 . Remotely . | . . . . . . . . Salvage Created 1182 | . 91 294 212 86 . 499 . Parts 64 | . 4 19 11 6 . 24 . Haulers Intercepted 3 | . 1 . . . . 2 . Recyclers Shooed . | . . . . . . . . Parts Field Recycled . | . . . . . . . . Retrieved Matter . | . . . . . . . . Parts Self-Destructed . | . . . . . . . . Prevented . | . . . . . . . . Kills | -11 -10 -9 -9 -9 -8 -8 -8 ------- Run | Yrd Mat Mat Min Exi Min Mat Gar Combat Hostiles Destroyed 19 | . 1 6 5 . . 7 . Guns 4 | . . . 1 . . 3 . Cannons 12 | . 1 5 4 . . 2 . AOE 1 | . . . . . . 1 . Classes Destroyed 7 | . 2 1 . . . 4 . Builder 1 | . . . . . . 1 . Hauler 3 | . 1 . . . . 2 . Recycler 1 | . . . . . . 1 . Watcher 1 | . . . . . . 1 . Swarmer 2 | . . . . . . 2 . Grunt 13 | . 1 3 5 . . 4 . Sentry 4 | . . 3 . . . 1 . Best Kill Streak 5 | . 1 3 2 . . 5 . Combat Bots Only 3 | . 1 3 2 . . 3 . Max Kills in Single Turn 2 | . 1 1 1 . . 2 . Gunslinging . | . . . . . . . . Exploded 1 | . . . . . . 1 . Melee . | . . . . . . . . Uniques/NPCs Destroyed . | . . . . . . . . Combat | -11 -10 -9 -9 -9 -8 -8 -8 -------- Run | Yrd Mat Mat Min Exi Min Mat Gar Hostile Shots Fired 176 | . 1 32 33 . . 45 65 Missed 46 | . . 4 8 . . 18 16 Hits 130 | . 1 28 25 . . 27 49 Projectile 130 | . 1 28 25 . . 27 49 Critical Strikes 6 | . . . 1 . . 1 4 Damage Taken 2007 | . 10 372 333 . . 418 874 Core 669 | . . 67 32 . . 75 495 Absorbed by Shields 54 | . . . . . . . 54 Redirected to Shielding 16 | . . . . . . 16 . Core Remaining (%) 91 | 100 100 . . . 75 . . Volleys Fired 73 | . 6 13 12 5 . 33 4 Largest 2 | . 2 2 2 2 . 2 2 Hottest 100 | . 80 100 100 100 . 100 55 Shots Fired 140 | . 12 26 24 10 . 61 7 Gun 85 | . 6 13 12 5 . 46 3 Cannon 48 | . 6 13 12 5 . 12 . Launcher 7 | . . . . . . 3 4 Special . | . . . . . . . . Kinetic 43 | . 6 5 8 . . 21 3 Thermal 90 | . 6 21 16 10 . 37 . Explosive 7 | . . . . . . 3 4 Electromagnetic . | . . . . . . . . Robot Hit Streak 14 | . 3 14 12 5 . 9 . Robot Miss Streak 4 | . 1 2 3 1 . 4 . Penetration Max . | . . . . . . . . Secondary Targets . | . . . . . . . . Shots Hit Robots 94 | . 8 20 18 5 . 43 . Core Hits 46 | . 3 9 6 3 . 25 . Critical Kills 1 | . . 1 . . . . . Critical Parts Destroyed . | . . . . . . . . Critical Strikes 1 | . . 1 . . . . . Meltdown 1 | . . 1 . . . . . Melee Attacks . | . . . . . . . . Impact . | . . . . . . . . Slashing . | . . . . . . . . Piercing . | . . . . . . . . Sneak Attacks . | . . . . . . . . Combat Hostiles . | . . . . . . . . Follow-up Attacks . | . . . . . . . . Damage Inflicted 1491 | . 115 295 278 72 . 731 . Guns 663 | . 45 105 103 20 . 390 . Cannons 609 | . 70 190 175 52 . 122 . Explosions 218 | . . . . . . 218 . Melee . | . . . . . . . . Ramming 1 | . . . . . . 1 . Kinetic 262 | . 45 28 80 . . 109 . Thermal 1010 | . 70 267 198 72 . 403 . Explosive 218 | . . . . . . 218 . Electromagnetic . | . . . . . . . . Impact . | . . . . . . . . Slashing . | . . . . . . . . Piercing . | . . . . . . . . Highest Corruption . | . . . . . . . . Average Corruption . | . . . . . . . . Corruption Purged . | . . . . . . . . Corruption Blocked . | . . . . . . . . Overload Shots . | . . . . . . . . Overflow Damage 2 | . . . . . . . 2 Projectiles . | . . . . . . . . Explosions 2 | . . . . . . . 2 Melee . | . . . . . . . . Knockbacks . | . . . . . . . . Impact . | . . . . . . . . Kinetic . | . . . . . . . . Secondary . | . . . . . . . . Self-Inflicted Damage 197 | . . . . . . . 197 Shots 4 | . . . . . . . 4 Rammed 1 | . . . . . . 1 . Targets Rammed 1 | . . . . . . 1 . Kicked . | . . . . . . . . Crushed . | . . . . . . . . Highest Temperature 320 | . 90 222 168 90 . 320 17 Average Temperature 86 | . 42 72 90 40 . 115 7 Received Heat Transfer 1075 | . 6 159 204 . . 234 472 Siege Activations . | . . . . . . . . Martial Activations . | . . . . . . . . Shielding Activations . | . . . . . . . . Robots Disrupted . | . . . . . . . . Combat Hostiles . | . . . . . . . . Robots Corrupted . | . . . . . . . . Combat Hostiles . | . . . . . . . . Parts Fried . | . . . . . . . . Impact Corruptions . | . . . . . . . . Robots Melted 2 | . . 1 . . . 1 . Combat Hostiles 2 | . . 1 . . . 1 . Parts Melted 8 | . . 3 3 . . 2 . Heat Transferred 2191 | . 148 582 420 161 . 880 . Parts Sabotaged . | . . . . . . . . Parts Stolen . | . . . . . . . . Parts Stripped . | . . . . . . . . Power Chain Reactions . | . . . . . . . . Alert | -11 -10 -9 -9 -9 -8 -8 -8 ------- Run | Yrd Mat Mat Min Exi Min Mat Gar Maximum Alert Level 1 | . . . . . . 1 . Low Security (%) 99 | 100 100 100 100 . 100 97 100 Level 1 . | . . . . . . 2 . Level 2 . | . . . . . . . . Level 3 . | . . . . . . . . Level 4 . | . . . . . . . . Level 5 . | . . . . . . . . High Security . | . . . . . . . . Max Security . | . . . . . . . . Peak Influence 217 | . 50 90 56 . . 217 187 Initial 141 | . . 3 . . . . 141 Average 28 | . 8 28 7 . . 84 149 Influence Increases 929 | . 71 150 126 . . 525 57 Destroy 0b10 Robot/C 420 | . 20 120 100 . . 180 . Destroy 0b10 Robot/NC 35 | . 5 . . . . 30 . Destroy Leader 90 | . 12 30 20 . . 28 . Allied During Kill 20 | . . . 6 . . 14 . Successful Hack 8 | . 4 . . . . 4 . Select Force Hacks 60 | . 30 . . . . 30 . Disable Machine 15 | . . . . . . 15 . Anti-Garrison Action 50 | . . . . . . . 50 Destroy Structure 21 | . . . . . . 14 7 Lose Combat Pursuer 210 | . . . . . . 210 . Influence Decreases 791 | . 61 160 120 6 . 308 136 Entered New Map 89 | . . 7 . 6 . . 76 Time Decay 444 | . 61 143 110 . . 130 . Lost Part 130 | . . 10 10 . . 50 60 Lost Ally 40 | . . . . . . 40 . Purge Threat 88 | . . . . . . 88 . Squads Dispatched 3 | . 1 . . . . 2 . Investigation 2 | . 1 . . . . 1 . Extermination . | . . . . . . . . Reinforcement 1 | . . . . . . 1 . Assault . | . . . . . . . . Garrison . | . . . . . . . . Intercept . | . . . . . . . . Searches Triggered . | . . . . . . . . Construction Impeded 1 | . . . . . . 1 . Haulers Reinforced . | . . . . . . . . Active Scanning Responses . | . . . . . . . . Cargo Convoy Interrupts . | . . . . . . . . Stealth | -11 -10 -9 -9 -9 -8 -8 -8 --------- Run | Yrd Mat Mat Min Exi Min Mat Gar Distress Signals 5 | . . 1 . . . 4 . Communications Jammed . | . . . . . . . . Distress Signals . | . . . . . . . . Times Spotted 54 | . 1 14 5 . . 32 2 Peak Tracking Total 10 | . 1 9 3 . . 10 2 Tactical Retreats 5 | . . . . . . 5 . Traps | -11 -10 -9 -9 -9 -8 -8 -8 ------- Run | Yrd Mat Mat Min Exi Min Mat Gar Traps Triggered 2 | . . . . . . . 2 Indirectly . | . . . . . . . . Trap Hack Attempts . | . . . . . . . . Triggered . | . . . . . . . . Disarmed . | . . . . . . . . Reprogrammed . | . . . . . . . . Reused . | . . . . . . . . Traps Extracted . | . . . . . . . . Installed . | . . . . . . . . Triggered . | . . . . . . . . Machines | -11 -10 -9 -9 -9 -8 -8 -8 ---------- Run | Yrd Mat Mat Min Exi Min Mat Gar Machines Disabled 2 | . . . . . . 1 1 Max in Single Turn 1 | . . . . . . 1 1 Garrison Relay 1 | . . . . . . . 1 Machines Repaired . | . . . . . . . . Machines Dismantled . | . . . . . . . . Machines Sabotaged . | . . . . . . . . Overloaded Fab Kills . | . . . . . . . . Hacking | -11 -10 -9 -9 -9 -8 -8 -8 --------- Run | Yrd Mat Mat Min Exi Min Mat Gar Machines Accessed 13 | . 2 . 1 4 . 4 2 Terminals 6 | . 1 . 1 . . 2 2 Fabricators . | . . . . . . . . Repair Stations . | . . . . . . . . Recycling Units 2 | . 1 . . . . 1 . Scanalyzers . | . . . . . . . . Garrison Access 1 | . . . . . . 1 . Total Hacks 61 | . 2 . 2 41 . 11 5 Successful 49 | . 2 . 2 41 . 4 . Failed 12 | . . . . . . 7 5 Catastrophic 2 | . . . . . . 2 . Database Lockouts . | . . . . . . . . Manual 11 | . 1 . 2 1 . 7 . Terminals 16 | . 1 . 2 . . 8 5 Fabricators . | . . . . . . . . Repair Stations . | . . . . . . . . Recycling Units 3 | . 1 . . . . 2 . Scanalyzers . | . . . . . . . . Garrison Access 1 | . . . . . . 1 . Terminal Hacks 46 | . 1 . 2 41 . 2 . Record 40 | . . . . 40 . . . Robot Analysis 1 | . . . 1 . . . . Unreport Threat 1 | . . . . . . 1 . Locate Traps 1 | . 1 . . . . . . Dispatch Records 1 | . . . 1 . . . . Recall Investigation 1 | . . . . . . 1 . Proto ID Catalog 1 | . . . . 1 . . . Fabricator Hacks . | . . . . . . . . Repair Station Hacks . | . . . . . . . . Recycling Unit Hacks . | . . . . . . . . Scanalyzer . | . . . . . . . . Garrison Access Hacks 1 | . . . . . . 1 . Unlock Access 1 | . . . . . . 1 . Unauthorized Hacks 2 | . 1 . . . . 1 . Terminals . | . . . . . . . . Fabricators . | . . . . . . . . Repair Stations . | . . . . . . . . Recycling Units 2 | . 1 . . . . 1 . Tunnel 2 | . 1 . . . . 1 . Scanalyzers . | . . . . . . . . Garrison Access . | . . . . . . . . Data Cores Recovered . | . . . . . . . . Used . | . . . . . . . . Hacking Detections 5 | . . . 1 . . 2 2 Full Trace Events . | . . . . . . . . Feedback Events . | . . . . . . . . Feedback Blocked . | . . . . . . . . Robot Schematics Acquired . | . . . . . . . . Robots Built . | . . . . . . . . Authchips . | . . . . . . . . Time . | . . . . . . . . Total Robot Build Rating . | . . . . . . . . Part Schematics Acquired . | . . . . . . . . Parts Built . | . . . . . . . . Authchips . | . . . . . . . . Time . | . . . . . . . . Total Part Build Rating . | . . . . . . . . Parts Repaired . | . . . . . . . . Time . | . . . . . . . . Parts Recycled . | . . . . . . . . Recycled Matter . | . . . . . . . . Retrieved Matter . | . . . . . . . . Retrieved Components . | . . . . . . . . Parts Scanalyzed . | . . . . . . . . Part Schematics Acquired . | . . . . . . . . Parts Damaged . | . . . . . . . . Bothacking | -11 -10 -9 -9 -9 -8 -8 -8 ------------ Run | Yrd Mat Mat Min Exi Min Mat Gar Used RIF Installer . | . . . . . . . . Robots Hacked . | . . . . . . . . Non-combat . | . . . . . . . . Combat . | . . . . . . . . Robot Hacks Applied . | . . . . . . . . Relay Couplers Released 3 | . . . . . . . 3 Machine Destruction 3 | . . . . . . . 3 Fabnet Peak Effective % . | . . . . . . . . Robots Rewired 3 | . . . . 3 . . . Allies Hacked . | . . . . . . . . Hacks Repelled . | . . . . . . . . Allies | -11 -10 -9 -9 -9 -8 -8 -8 -------- Run | Yrd Mat Mat Min Exi Min Mat Gar Total Allies 6 | . . . 3 3 . . . Largest Group 3 | . . . 3 3 3 3 . Highest-Rated Group 67 | . . . 67 37 37 37 . Highest-Rated Ally 31 | . . . 31 31 21 21 . Total Orders . | . . . . . . . . Ally Attacks 20 | . . . 3 . . 17 . Total Damage 272 | . . . 43 . . 229 . Kills 4 | . . . . . . 4 . Allies Corrupted . | . . . . . . . . Allies Melted . | . . . . . . . . Intel | -11 -10 -9 -9 -9 -8 -8 -8 ------- Run | Yrd Mat Mat Min Exi Min Mat Gar Active Infowar (turns) 2194 | . . . 282 1300 227 326 59 Sensors 2189 | . . . 282 1295 227 326 59 Jamming 589 | . . . . 458 103 28 . Robot Analysis Total 1 | . . . 1 . . . . Derelict Logs Recovered 1 | . . . 1 . . . . Drone Launches . | . . . . . . . . Drone Recoveries . | . . . . . . . . Exploration | -11 -10 -9 -9 -9 -8 -8 -8 ------------- Run | Yrd Mat Mat Min Exi Min Mat Gar Turns Passed 3585 | 70 324 373 844 1300 227 328 119 Spaces Moved 2057 | 47 185 190 464 643 141 301 86 Core 19 | 18 . . . . . 1 . Treads 1687 | 29 185 190 464 643 141 35 . Legs . | . . . . . . . . Wheels . | . . . . . . . . Hover . | . . . . . . . . Flight 351 | . . . . . . 265 86 Fastest Speed 34 | 50 160 160 160 160 160 34 40 Average Speed 139 | 125 160 160 160 160 160 61 40 Slowest Speed 440 | 200 160 160 160 160 160 440 120 Overloaded Moves . | . . . . . . . . Propulsion Burnouts . | . . . . . . . . Robots Hopped 1 | . . . . . . 1 . Potential Cave-ins . | . . . . . . . . Cave-ins Triggered . | . . . . . . . . Exploration Rate (%) 39 | 5 25 21 88 92 45 28 15 Regions Visited 7 Branch Regions 3 Pre-discovered Areas 4 | . 1 . 1 1 . 1 . Known Exits Taken 4 | . . 1 1 . 1 1 . Unknown Exits Taken 3 | 1 1 . . 1 . . . Scrap Searched 2 | . . . 1 . 1 . . Spaces Dug . | . . . . . . . . Terrain Destroyed 24 | . . . . . . 12 12 Melee . | . . . . . . . . Projectile . | . . . . . . . . AOE 24 | . . . . . . 12 12 Terrain Rammed . | . . . . . . . . Walls Destroyed . | . . . . . . . . Machines Disabled . | . . . . . . . . Actions | -11 -10 -9 -9 -9 -8 -8 -8 --------- Run | Yrd Mat Mat Min Exi Min Mat Gar Total 2624 | 55 200 235 540 906 143 381 164 Wait 280 | . 2 20 59 138 . 20 41 Move 2048 | 46 184 189 463 642 140 298 86 Hop 1 | . . . . . . 1 . Pick Up 16 | 2 6 3 1 1 1 2 . Fast Attach 20 | 6 1 1 3 2 . 7 . Attach 9 | . . 2 1 . . 4 2 Detach 5 | . . 1 . . . 3 1 Swap 21 | 1 1 2 1 6 1 6 3 Drop 19 | . . 4 . 7 1 6 1 Fire 73 | . 6 13 12 5 . 33 4 Melee . | . . . . . . . . Ram 1 | . . . . . . 1 . Kick . | . . . . . . . . Crush . | . . . . . . . . Escape Stasis 26 | . . . . . . . 26 Rewire 105 | . . . . 105 . . . Trap . | . . . . . . . . Miscellaneous . | . . . . . . . . Route ------- -11/Scrapyard -10/Materials -9/Materials -9/Mines (discovered 3 exits: *Mat x2 / *Exi) -9/Exiles (discovered 2 exits: [*Min x2]) -8/Mines -8/Materials -8/Garrison History --------- Turn | Location | Event 7 | -11/Scrapyard | Discovered new exit (range 13) 71 | -11/Scrapyard | Entered Materials 225 | -10/Materials | Discovered new exit (range 14) 307 | -10/Materials | Build established: Mutant 395 | -10/Materials | Entered another Materials area 395 | -9/Materials | Evolved 2 slots: Propulsion x1, Utility x1 744 | -9/Materials | Discovered new exit (range 6) 767 | -9/Materials | Identified exit to Mines 768 | -9/Materials | Entered Mines 823 | -9/Mines | Lost 3 parts (1p1n1w) 940 | -9/Mines | Discovered new exit (range 11) 949 | -9/Mines | Received a Mining Laser from a helpful Derelict 960 | -9/Mines | Identified exit to Materials 1467 | -9/Mines | Discovered exit to Materials (range 6) 1532 | -9/Mines | Learned location of Zion (-6) 1598 | -9/Mines | Deemed a non-threat by the Exiles lab entrance 1599 | -9/Mines | Discovered new exit (range 5) 1606 | -9/Mines | Identified exit to Exiles 1612 | -9/Mines | Entered Exiles 1612 | -9/Exiles | Found Exiles lab destroyed 1612 | -9/Exiles | Accompanied by 2 allies 1642 | -9/Exiles | Led the pair of lost Derelicts to a safe place 1691 | -9/Exiles | Discovered new exit (range 15) 1857 | -9/Exiles | Opened EX-Vault 1866 | -9/Exiles | Found Skeleton Box 2573 | -9/Exiles | Build established: Scavenger-Mutant 2891 | -9/Exiles | Discovered new exit (range 14) 2912 | -9/Exiles | Entered Mines 2912 | -8/Mines | Accompanied by 3 allies 2980 | -8/Mines | Build established: Mutant 3135 | -8/Mines | Discovered exit to Materials (range 3) 3139 | -8/Mines | Entered Materials 3139 | -8/Materials | Accompanied by 3 allies 3139 | -8/Materials | Evolved 2 slots: Propulsion x1, Utility x1 3257 | -8/Materials | Lost 3 allies 3324 | -8/Materials | Lost 3 parts (1n2w) 3464 | -8/Materials | Identified exit to Garrison 3467 | -8/Materials | Entered Garrison 3501 | -8/Garrison | Triggered checkpoint 3533 | -8/Garrison | Garrison Relay disabled 3558 | -8/Garrison | Core integrity fell below 50% 3575 | -8/Garrison | Core integrity fell below 20% 3586 | -8/Garrison | Destroyed self with Mini Grenade Launcher Last Messages --------------- 03525_ Field strength at 26. 03526_ Imp. Sensor Array destroyed. 03526_ Field strength at 17. 03527_ Field strength at 12. 03528_ Field strength at 3. 03529_ Stasis field depleted. 03533_ Garrison Relay disabled. 03533_ Relay Coupler [Cutter] tumbles out of relay unit. 03533_ Relay Coupler [Grunt] tumbles out of relay unit. 03533_ Relay Coupler [Sentry] tumbles out of relay unit. 03538_ Minigun destroyed. 03538_ Destroyed Minigun. 03544_ Lgt. Ion Engine destroyed. 03548_ Flight Unit destroyed. 03548_ Critical hit (Burn: +37). 03573_ System Shield destroyed. 03584_ Adv. Weight Redist. System destroyed. Map ----- +----------------------------------------------------+ | | | | | | | | | | | | | ?????????????????????????????????????????????????? | | ?????????????????????????????????????????????????? | | ?????????????????????????????????????????????????? | | ?????????????????????????????????????????????????? | | ?????????????????????????????????????????????????? | | ?????????????????????????????????????????????????? | | ?????????????????????????????????????????????????? | | ?????????????????????????????????????????????????? | | ?????????????????????????????????????????????????? | | ?????????????????????????????????????????????????? | | ?????????????????????????????????????????????????? | | ?????????????????????????????????????????????????? | | ?????????????????????????????????????????????????? | | ?????????????????????????????????????????????????? | | ??????????????????????##?????????????????????????? | | ?????????????????????## ####?????????????????????? | | ?????????????????????# # #?????????????????????? | | ?????????????????????# #?????????????????????? | | ?????????????????????# #?????????????????????? | | ?????????????????????# g@ #?????????????????????? | | ?????????????????????# g# #?????????????????????? | | ?????????????????????## ###?????????????????????? | | ??????????????????????## #???????????????????????? | | ???????????????????????# #???????????????????????? | | ???????????????????????# #???????????????????????? | | ?????????????????????### #???????????????????????? | | ???#####?????????????# #???????????????????????? | | ???# #?????????????# #???????????????????????? | | ???# ###########???# #???????????????????????? | | ???# [ #???### #???????????????????????? | | ???# #?????# ######??????????????????? | | ???############ ####### ##"T"#??????????????????? | | ??????????????# "#??????????????????? | | ??????????????# ##############??????????????????? | | ??????????????# #???????????????????????????????? | | ??????????????# #???????????????????????????????? | | ??????????????# #???????????????????????????????? | | ??????????????# #???????????????????????????????? | | ??????????????# #???????????????????????????????? | | ??????????????# #???????????????????????????????? | | ??????????????# ##??????????????????????????????? | | ??????????????# T#??????????????????????????????? | | ??????????????# ##?????######""""## ##?????????? | | ??????????????# ######## #?????????? | +----------------------------------------------------+ Best States ------------- Heat Dissipation 31 Energy Generation 14 Energy Capacity 280 Matter Stores 300 Matter Capacity 300 Sight Range 16 Robot Scan Range 19 Terrain Scan Density 10 Jamming Range 14 Additional Mass Support 9 Propulsion Shielding 33 Evasion (%) 63 Targeting Accuracy 6 Recoil Reduction 3 Defensive Hacking 10 Item Schematics ----------------- None Robot Schematics ------------------ None Fabricated ------------ Nothing Repaired ---------- Nothing Alien Tech Used ----------------- None Achievements -------------- None Challenges ------------ None Game ------ Seed ThiefKineticCyclogen Manual? 0 Play Time 00:31:48 Cumulative 22.3 hours Start 2025.05.25 @ 11:09:21 End 2025.05.25 @ 11:46:04 Sessions 1 Manual Loads 0 Difficulty Rogue Special Mode None Game No. 38 Rogue 38 Adventurer 0 Explorer 0 Win Type - Total 0 Types 0/0/0/0/0/0/0/0/0/0 Lore% 27 Gallery% 27 Achievement% 23 Wizard Run 0 Options --------- Layout 1 ASCII 0 Keyboard 0 Movement Numpad Keybinds 0 Fullscreen 1 Font 24/Smallcaps Map View 50x35 Zoom Use 0% Tactical HUD 1 Map Filters NONE Filters NONE Steam 1 RUN: a203d303-dd82-4f65-9ec8-62da99adc046